[Event "Qatar Masters 2024"]
[Site "Doha"]
[Date "2024.12.03"]
[Round "1.15"]
[White "Arun Kataria"]
[Black "Karthikeyan, Murali"]
[Result "0-1"]
[Annotator "TA"]
[ECO "B32"]
[WhiteElo "2370"]
[BlackElo "2625"]
[PlyCount "128"]
[EventDate "2024.11.24"]
[EventType "swiss"]
[EventCountry "QAT"]
[SourceTitle "playchess.com"]
[Source "ChessBase"]
[SourceQuality "1"]
[TimeControl "40/5400+30:1800+30"]

{[%evp 28,128,18,10,14,-4,0,0,0,-28,-20,-50,-52,-82,-97,-91,-99,-96,-92,-131,-135,-134,-153,-139,-56,-55,-64,-60,-60,-62,-61,-59,-45,-60,-67,-61,-48,-52,-50,-83,-96,-95,-83,-83,-90,-83,-85,-79,0,-49,-47,-41,-39,-83,-40,-92,-88,-140,-140,-127,-133,-171,-130,-133,-125,-141,-146,-148,-121,-121,-97,-97,-121,-97,-97,-2101,-1680,-29963,-29966,-29967,-29969,-29968,-29969,-29969,-29970,-29969,-29971,-29970,-29972,-29972,-29973,-29972,-29973,-29972,-29975,-29974,-29975,-29990,-29991,-29991,-29992,-29998,-29999]} 1. e4 {[%emt 0:00:07]} c5 {[%emt 0:00:24]} 2. Nf3 {[%emt 0:00:07]} Nc6 {[%emt 0:00:12]} 3. d4 {[%emt 0:00:04]} cxd4 {[%emt 0:00:07]} 4. Nxd4 {[%emt 0:00:03]} e5 {[%emt 0:01:34]} 5. Nb5 {[%emt 0:00:06]} d6 {[%emt 0:00:05]} 6. c4 {[%emt 0:00:07]} a6 {[%emt 0:00:29] 6...g6 gains popularity.} 7. N5c3 {[%emt 0:00:05] B32: Sicilian: Löwenthal and Kalashnikov Variations.} g6 {[%emt 0:00:48]} 8. Be3 {[%emt 0:00:52]} Bg7 {[%emt 0:04:15]} 9. Nd5 {[%emt 0:08:04]} Nd4 {[%emt 0:01:29]} 10. Nbc3 {[%emt 0:00:05]} Be6 {[%emt 0:07:16]} 11. Rc1 $146 {[%emt 0:05:47]} ({Predecessor:} 11. Bd3 h6 12. Qa4+ Bd7 13. Qb4 Bc6 14. O-O Ne7 15. f4 Bxd5 16. cxd5 b5 17. a4 {1-0 Torok,F (2325)-Machacek,P Lang Memorial-A 7th 1987 (9)}) 11... Nf6 {[%emt 0:05:06]} 12. Bxd4 {[%emt 0:19:19]} exd4 {[%emt 0:01:06]} 13. Qxd4 {[%emt 0:00:16]} O-O {[%emt 0:01:45]} 14. Qb6 {[%emt 0:01:43]} Bxd5 {[%emt 0:27:44]} 15. Qxd8 {[%emt 0:00:40]} Rfxd8 {[%emt 0:00:08]} 16. cxd5 {[%emt 0:19:29]} Rac8 {[%emt 0:05:16]} 17. Bd3 {[%emt 0:04:48]} b5 {[%emt 0:04:18]} 18. O-O {[%emt 0:00:53]} Nd7 {[%emt 0:01:13]} 19. Bb1 {[%emt 0:05:28]} Rc5 {[%emt 0:01:15]} 20. f4 {[%emt 0:08:19]} Bd4+ {[%emt 0:13:36]} 21. Kh1 {[%emt 0:00:03]} Rdc8 {[%emt 0:00:15]} 22. Rce1 {[%emt 0:02:08]} (22. Rf3 $2 b4 23. Rff1 bxc3 $19) 22... Nb6 {[%emt 0:06:07]} 23. Nd1 {[%emt 0:07:01]} Rc1 {[%emt 0:03:43]} 24. Nc3 {[%emt 0:01:47]} Rxe1 {[%emt 0:00:06]} 25. Rxe1 {[%emt 0:00:06]} b4 {[%emt 0:01:29]} ({Better is} 25... Bxc3 $17 26. bxc3 Rxc3) 26. Ne2 $1 $15 {[%emt 0:01:57]} Bxb2 {[%emt 0:00:05]} 27. Bd3 {[%emt 0:04:44]} a5 {[%emt 0:00:06]} 28. Rb1 {[%emt 0:00:06]} Na4 {[%emt 0:02:02]} 29. Kg1 {[%emt 0:02:27]} Bf6 {[%emt 0:10:17]} 30. Rc1 {[%emt 0:04:31]} Rxc1+ {[%emt 0:00:47]} 31. Nxc1 {[%emt 0:00:01]} Nc3 32. Kf2 {[%emt 0:01:23]} a4 {[%emt 0:00:35]} 33. Bc4 {[%emt 0:03:29]} Nxe4+ {[%emt 0:00:24]} 34. Ke3 {[%emt 0:00:01]} Nc3 {[%emt 0:00:38]} 35. Kd3 {[%emt 0:01:21]} Kg7 {[%emt 0:01:56]} 36. Kc2 {[%emt 0:00:19]} Kh6 {[%emt 0:01:09]} 37. Nd3 {[%emt 0:00:29]} Ne2 {[%emt 0:00:08]} (37... Kh5 $1 $17 38. f5 gxf5 39. Nxb4 Kg5) 38. Nxb4 {[%emt 0:00:16]} (38. Kd2 $11 {is more appropriate.} Nc3 39. Nxb4) 38... Nxf4 $15 {[%emt 0:00:05]} 39. g3 {[%emt 0:00:31]} Nh5 {[%emt 0:00:42]} 40. Bb5 {[%emt 0:00:20]} a3 {[%emt 0:00:50]} 41. Kb3 {[%emt 0:30:54]} ({White should play} 41. Nc6 $15) 41... Bd4 $1 $17 {[%emt 0:30:06]} 42. Kxa3 {[%emt 0:00:00]} (42. g4 $142 Nf4 43. Be8) 42... Bg1 $1 $17 {[%emt 0:00:00]} 43. g4 {[%emt 0:00:00]} Nf4 {[%emt 0:00:00]} 44. h4 {[%emt 0:00:00]} Bf2 {[%emt 0:00:00]} 45. Kb3 {[%emt 0:00:00]} Bxh4 {[%emt 0:00:00]} 46. a4 {[%emt 0:00:00]} Kg5 {[%emt 0:00:00]} 47. Bd7 {[%emt 0:00:00] [#]} Bf2 $1 {[%emt 0:00:00]} 48. Kc4 {[%emt 0:00:00]} h5 {[%emt 0:00:00]} 49. gxh5 {[%emt 0:00:00]} gxh5 {[%emt 0:00:00]} 50. Nc6 {[%emt 0:00:00]} h4 {[%emt 0:00:00]} 51. a5 $2 {[%emt 0:02:06][%mdl 8192] [#]} (51. Nd8 $17) 51... f5 $1 $19 {[%emt 0:00:00]} 52. a6 {[%emt 0:02:04]} h3 {[%emt 0:00:00]} 53. Nd4 {[%emt 0:00:51]} Bxd4 {[%emt 0:00:00]} 54. Kxd4 {[%emt 0:00:04]} h2 {[%emt 0:00:00]} 55. a7 {[%emt 0:00:05]} h1=Q {[%emt 0:00:00]} (55... h1=R $2 {perishes.} 56. a8=Q (56. a8=B $2 {loses.} Ng6 $19) 56... Rd1+ 57. Ke3 Nxd5+ 58. Kf2 $18) 56. a8=Q {[%emt 0:00:03]} Qd1+ {[%emt 0:00:00]} 57. Kc3 {[%emt 0:00:07]} Nxd5+ {[%emt 0:00:28]} (57... Qxd5 58. Qd8+ Kg4 59. Qe8 $19) 58. Kb2 {[%emt 0:00:05]} Qd2+ {[%emt 0:00:05]} 59. Ka1 {[%emt 0:00:23]} Qc1+ {[%emt 0:00:12]} 60. Ka2 {[%emt 0:00:03]} Qc2+ {[%emt 0:00:13]} 61. Ka1 {[%emt 0:00:05]} Nc3 {[%emt 0:00:58]} 62. Qg8+ {[%emt 0:01:13]} Kf4 {[%emt 0:00:08]} 63. Qc4+ {[%emt 0:00:04]} Kg3 {[%emt 0:00:11]} 64. Bxf5 {[%emt 0:01:12]} Qc1+ {[%emt 0:00:06]} 0-1

[Event "Qatar Masters 2024"]
[Site "Doha"]
[Date "2024.12.03"]
[Round "1.16"]
[White "Naiditsch, Arkadij"]
[Black "Aitbayev, Aslan"]
[Result "1-0"]
[Annotator "TA"]
[ECO "C18"]
[WhiteElo "2636"]
[BlackElo "2369"]
[PlyCount "59"]
[EventDate "2024.11.24"]
[EventType "swiss"]
[EventCountry "QAT"]
[SourceTitle "playchess.com"]
[Source "ChessBase"]
[SourceQuality "1"]
[TimeControl "40/5400+30:1800+30"]

{[%evp 13,59,-9,-15,-15,-15,-24,0,-16,0,0,0,0,17,11,21,14,14,7,121,143,133,129,308,325,323,324,331,314,333,314,495,478,504,502,578,596,639,639,658,656,843,770,797,791,888,852,816,822]} 1. e4 {[%emt 0:00:05]} e6 {[%emt 0:00:27]} 2. d4 {[%emt 0:00:09]} d5 {[%emt 0:00:03]} 3. Nc3 {[%emt 0:00:08]} Bb4 {[%emt 0:01:14]} 4. e5 {[%emt 0:00:08]} c5 {[%emt 0:02:09]} 5. a3 {[%emt 0:00:09]} Bxc3+ {[%emt 0:01:34]} 6. bxc3 {[%emt 0:00:08]} Ne7 {[%emt 0:00:05]} 7. h4 {[%emt 0:00:14]} Qc7 {[%emt 0:03:10]} 8. h5 {[%emt 0:01:18]} h6 {[%emt 0:00:03]} 9. Rh3 {[%emt 0:00:22]} b6 {[%emt 0:06:02]} 10. a4 {[%emt 0:03:20] The position is equal.} Ba6 {[%emt 0:05:38]} 11. Bb5+ {[%emt 0:01:07]} Bxb5 {[%emt 0:00:47]} 12. axb5 {[%emt 0:00:07]} a5 {[%emt 0:06:30]} 13. Qg4 {[%emt 0:07:50]} Nf5 {[%emt 0:12:10]} 14. Ne2 {[%emt 0:12:34]} Nd7 {[%emt 0:05:48]} 15. Qf4 {[%emt 0:05:50]} g5 {[%emt 0:21:30]} ({Much weaker is} 15... cxd4 $6 16. cxd4 O-O 17. Ba3 $16) (15... Ne7 $11) 16. hxg6 $16 {[%emt 0:10:30]} fxg6 {[%emt 0:00:34]} 17. Qh2 {[%emt 0:07:30] aiming for g4. White is more active.} g5 $2 {[%emt 0:16:21] A mistake that costs the game.} (17... h5 $16) 18. Bxg5 $18 {[%emt 0:04:04] g4 would now be deadly.} Rg8 {[%emt 0:00:06]} 19. Bxh6 {[%emt 0:09:49]} O-O-O {[%emt 0:01:17] [#]} 20. f4 $1 {[%emt 0:05:11][%cal Bf2f4,Bf4g5][%mdl 32]} Kb7 {[%emt 0:06:54]} 21. Bg5 {[%emt 0:00:29]} Rxg5 {[%emt 0:01:06]} (21... Rc8 $142 22. g4 Ng7) 22. fxg5 {[%emt 0:00:08] White is clearly winning.} cxd4 {[%emt 0:00:02]} 23. cxd4 {[%emt 0:05:46]} ({Weaker is} 23. Nxd4 Nxd4 24. cxd4 Qxc2 $18) 23... Qxc2 {[%emt 0:00:26]} 24. Qf4 {[%emt 0:04:34]} Qb2 {[%emt 0:04:08]} 25. Rc1 {[%emt 0:00:13]} Qxb5 {[%emt 0:00:26]} 26. Rh7 {[%emt 0:02:52]} Ne7 {[%emt 0:04:19]} 27. Qd2 {[%emt 0:04:39]} ({Not} 27. Rxe7 Qb4+ 28. Qd2 Qxe7 $14) 27... Re8 {[%emt 0:00:29]} 28. Nf4 {[%emt 0:02:02]} Nf8 {[%emt 0:00:29]} 29. Rf7 {[%emt 0:00:21]} Kb8 {[%emt 0:00:28]} 30. Qc3 {[%emt 0:02:56] Weighted Error Value: White=0.02 (flawless) /Black=0.45.  Loses game:     	---       	Black=1      Mistake:       	---       	Black=2      OK:         	White=8     	Black=4      Best:        	White=2     	---        Strong:       	White=1     	---} 1-0

[Event "Qatar Masters 2024"]
[Site "Doha"]
[Date "2024.12.03"]
[Round "1.17"]
[White "Bakhrillaev, Bakhrom"]
[Black "Ivanchuk, Vasyl"]
[Result "1/2-1/2"]
[Annotator "TA"]
[ECO "B42"]
[WhiteElo "2369"]
[BlackElo "2640"]
[PlyCount "81"]
[EventDate "2024.11.24"]
[EventType "swiss"]
[EventCountry "QAT"]
[SourceTitle "playchess.com"]
[Source "ChessBase"]
[SourceQuality "1"]
[TimeControl "40/5400+30:1800+30"]

{[%evp 16,81,44,47,56,37,49,43,44,37,35,27,82,83,72,73,57,58,50,67,79,49,60,0,7,0,0,4,2,7,98,0,0,0,0,0,0,0,0,0,30,-4,0,0,0,0,45,45,51,0,0,0,0,0,0,0,0,0,0,0,0,5,9,0,0,3,14,0]} 1. e4 {[%emt 0:00:06]} c5 {[%emt 0:00:26]} 2. Nf3 {[%emt 0:00:06]} e6 {[%emt 0:00:27]} 3. d4 {[%emt 0:00:06]} cxd4 {[%emt 0:00:04]} 4. Nxd4 {[%emt 0:00:06]} a6 {[%emt 0:00:05]} 5. Bd3 {[%emt 0:01:02]} Bc5 {[%emt 0:00:05]} 6. Nb3 {[%emt 0:01:02]} Be7 {[%emt 0:00:11]} 7. O-O {[%emt 0:05:28]} d6 {[%emt 0:00:33]} 8. c4 {[%emt 0:01:54]} Nf6 {[%emt 0:01:54]} 9. Nc3 {[%emt 0:00:15]} b6 {[%emt 0:05:32]} 10. f4 {[%emt 0:02:12] e5 would now be deadly.} Nbd7 {[%emt 0:01:58]} 11. Qe2 {[%emt 0:04:05]} Bb7 {[%emt 0:01:09] White is slightly better.} 12. Kh1 {[%emt 0:03:46]} h5 {[%emt 0:09:11]} 13. Nd4 {[%emt 0:08:31]} Ng4 {[%emt 0:18:00]} (13... h4 $11 {keeps the balance.}) 14. Bd2 $16 {[%emt 0:09:42]} Qc7 {[%emt 0:01:45]} 15. h3 {[%emt 0:08:39]} Ngf6 {[%emt 0:02:24]} 16. f5 {[%emt 0:03:42]} e5 {[%emt 0:00:11]} 17. Nf3 {[%emt 0:05:22]} h4 {[%emt 0:00:02]} 18. Qe1 {[%emt 0:04:58][%cal Oa1c1]} Qd8 {[%emt 0:07:50]} 19. Nxh4 {[%emt 0:09:01]} ({White should try} 19. Qe3 $14) 19... Nc5 $11 {[%emt 0:24:48]} 20. Bc2 {[%emt 0:00:07] next Nf3 is good for White.} Nfxe4 {[%emt 0:00:08]} 21. Nxe4 {[%emt 0:00:34]} Rxh4 {[%emt 0:00:08]} 22. f6 {[%emt 0:10:12]} Nxe4 {[%emt 0:08:02]} (22... Bxe4 $11 23. fxg7 (23. Qxh4 Bxf6 24. Qh8+ Kd7 $17) 23... Kd7 (23... Rxh3+ $2 {too greedy.} 24. Kg1 $18) 24. Rxf7 Qe8 25. Bxe4 Rxe4) 23. Qxh4 {[%emt 0:05:11]} ({Better is} 23. fxg7 $16 Kd7 (23... Rxh3+ $2 24. Kg1 $18) 24. Rxf7) 23... Bxf6 {[%emt 0:01:11]} 24. Qh8+ {[%emt 0:00:41]} Ke7 {[%emt 0:04:30]} 25. Qxd8+ {[%emt 0:00:06]} Rxd8 {[%emt 0:00:01]} 26. Be1 {[%emt 0:00:07]} a5 {[%emt 0:02:54]} 27. Rd1 {[%emt 0:00:58]} Bg5 {[%emt 0:02:10]} 28. Rd3 {[%emt 0:04:48]} Nc5 {[%emt 0:04:01] Dodges Rb3} 29. Rg3 {[%emt 0:00:36]} f6 {[%emt 0:00:15]} 30. Bf2 {[%emt 0:03:42]} Bc6 {[%emt 0:00:23]} (30... Ba6 $5) 31. Kg1 {[%emt 0:03:59]} Rb8 {[%emt 0:01:41]} 32. Re1 {[%emt 0:01:59]} (32. Rd1 $14) 32... Ne6 {[%emt 0:01:11] The position is equal.} 33. Be4 {[%emt 0:01:09]} Bxe4 {[%emt 0:00:53]} 34. Rxe4 {[%emt 0:00:02]} f5 {[%emt 0:00:05]} 35. Re2 {[%emt 0:01:04]} Bh4 $1 {[%emt 0:00:02]} 36. Rd3 {[%emt 0:01:07]} Bxf2+ {[%emt 0:00:21]} 37. Rxf2 {[%emt 0:00:01]} g6 {[%emt 0:01:46]} 38. Rfd2 {[%emt 0:01:13]} Nd4 {[%emt 0:00:01]} 39. Kf2 {[%emt 0:00:39]} b5 {[%emt 0:00:14]} 40. cxb5 {[%emt 0:00:48]} Rxb5 {[%emt 0:00:01]} 41. Rc3 {[%emt 0:30:54] Weighted Error Value: White=0.13 (very precise) /Black=0.09 (flawless) .  Mistake:       	White=3     	Black=2      Inaccurate:     	White=2     	Black=2      OK:         	White=12    	Black=16     Best:        	---       	Black=2      Strong:       	---       	Black=1} 1/2-1/2